[Event "World Junior U20 Girls 2018"]
[Site "Gebze"]
[Date "2018.09.07"]
[Round "4"]
[White "Malatsilava, Volha"]
[Black "Doroy Allaney Jia G"]
[Result "1-0"]
[ECO "C48"]
[WhiteElo "2040"]
[BlackElo "1914"]
[Annotator "NA"]
[PlyCount "83"]
[EventDate "2018.09.05"]
[EventType "swiss"]
[EventCountry "TUR"]
[SourceTitle "playchess.com"]
[Source "ChessBase"]
[SourceQuality "1"]
[TimeControl "40/5400+30:1800+30"]

1. e4 {[%emt 0:00:30]} e5 {[%emt 0:00:30]} 2. Nf3 {[%emt 0:00:30]} Nf6 {[%emt 0:00:00]} 3. Nc3 {[%emt 0:05:30]} Nc6 {[%emt 0:00:00]} 4. Bb5 {[%emt 0:05:30]} a6 {[%emt 0:03:30]} 5. Bxc6 {[%emt 0:00:30]} bxc6 {[%emt 0:02:30]} 6. Nxe5 {[%emt 0:00:30]} Bb4 {[%emt 0:04:30] C48: Vierspringerspiel (Rubinstein-Variante)} (6... Qe7 7. d4 Nxe4 8. Nxe4 d6 9. Bg5 Qe6 10. O-O dxe5 11. dxe5 Qd5 12. Qf3 Be6 13. Rad1 Qxe5 14. Nf6+ gxf6 15. Bxf6 Bd5 16. Rfe1 {1-0 (16) Mroziak,M (2359)-Adamowicz,K (2173) Krakow 2016}) 7. d3 {[%emt 0:03:30]} Qe7 {[%emt 0:00:30]} 8. Nf3 {[%emt 0:03:30]} d5 {[%emt 0:03:30]} 9. e5 $146 {[%emt 0:01:30]} ({Vorgänger:} 9. O-O Bg4 10. Re1 Bxc3 11. bxc3 dxe4 12. dxe4 O-O 13. e5 {0-1 (81) Reno Chanca,J-Garcia Vera,A Aviles 2004}) 9... O-O {[%emt 0:06:30]} 10. O-O {[%emt 0:00:30]} Nd7 {[%emt 0:00:30]} 11. d4 {[%emt 0:01:30]} Nb6 {[%emt 0:00:30]} 12. Ne2 {[%emt 0:02:30]} Qe8 {[%emt 0:00:30]} 13. h3 {[%emt 0:02:30]} Be7 {[%emt 0:01:30]} 14. Nf4 {[%emt 0:01:30]} a5 {[%emt 0:01:30]} 15. a4 {[%emt 0:03:30]} Be6 {[%emt 0:01:30]} 16. Nd3 {[%emt 0:04:30]} Bf5 {[%emt 0:04:30]} 17. Re1 {[%emt 0:10:30]} Qd7 {[%emt 0:08:30]} 18. Nc5 {[%emt 0:03:30]} Qc8 {[%emt 0:01:30]} 19. c3 {[%emt 0:00:30]} Re8 {[%emt 0:00:30]} 20. b4 {[%emt 0:00:30]} Qb8 {[%emt 0:04:30]} 21. g4 $16 {[%emt 0:08:30]} Bg6 {[%emt 0:00:30]} 22. Nd2 {[%emt 0:14:30]} Bg5 {[%emt 0:15:30]} 23. Ndb3 {[%emt 0:00:30]} Bxc1 {[%emt 0:01:30]} 24. Qxc1 {[%emt 0:00:30]} axb4 {[%emt 0:04:30]} 25. cxb4 {[%emt 0:00:30]} Qd8 {[%emt 0:00:30]} 26. Na5 {[%emt 0:06:07]} Qh4 {[%emt 0:03:30]} 27. Qc3 {[%emt 0:00:39]} h5 {[%emt 0:08:30]} 28. Qg3 {[%emt 0:00:30]} Qg5 {[%emt 0:00:30]} 29. f4 {[%emt 0:00:31]} Qh6 {[%emt 0:00:30]} 30. f5 {[%emt 0:00:30]} h4 {[%emt 0:00:30]} 31. Qe3 {[%emt 0:02:35]} Qxe3+ {[%emt 0:05:26]} 32. Rxe3 {[%emt 0:00:30]} Bh7 {[%emt 0:00:00]} 33. Nxc6 {[%emt 0:00:50]} g6 {[%emt 0:00:06]} 34. f6 {[%emt 0:02:13]} g5 {[%emt 0:00:17]} 35. a5 {[%emt 0:00:33]} Nc4 {[%emt 0:00:12]} 36. Re2 {[%emt 0:00:25]} Kh8 {[%emt 0:03:36]} 37. Kf2 {[%emt 0:01:31]} Rf8 {[%emt 0:07:26]} 38. a6 {[%emt 0:00:12]} Rfe8 {[%emt 0:00:27]} 39. a7 {[%emt 0:00:19]} Rf8 {[%emt 0:00:17]} 40. Na6 {[%emt 0:00:00]} Bd3 {[%emt 0:00:00]} 41. Rea2 {[%emt 0:03:35]} Nb6 {[%emt 0:02:43]} 42. Nxc7 {[%emt 0:02:30]} 1-0

[Event "World Junior U20 Girls 2018"]
[Site "Gebze"]
[Date "2018.09.07"]
[Round "4"]
[White "Gomez Barrera, Javiera Belen"]
[Black "Ince, Safiye Oyku"]
[Result "1-0"]
[ECO "B44"]
[WhiteElo "2035"]
[BlackElo "1905"]
[Annotator "NA"]
[PlyCount "83"]
[EventDate "2018.09.05"]
[EventType "swiss"]
[EventCountry "TUR"]
[SourceTitle "playchess.com"]
[Source "ChessBase"]
[SourceQuality "1"]
[TimeControl "40/5400+30:1800+30"]

1. e4 {[%emt 0:00:30]} c5 {[%emt 0:00:30]} 2. Nf3 {[%emt 0:00:00]} e6 {[%emt 0:00:00]} 3. d4 {[%emt 0:00:00]} cxd4 {[%emt 0:00:00]} 4. Nxd4 {[%emt 0:00:00]} Nc6 {[%emt 0:00:30]} 5. Nb5 {[%emt 0:00:00]} d6 {[%emt 0:00:00]} 6. c4 {[%emt 0:01:30]} Nf6 {[%emt 0:00:00]} 7. N1c3 {[%emt 0:00:30]} a6 {[%emt 0:00:30]} 8. Na3 {[%emt 0:00:00]} Qc7 {[%emt 0:01:30]} 9. Be2 {[%emt 0:01:00]} b6 {[%emt 0:00:30]} 10. Be3 {[%emt 0:00:30]} Be7 {[%emt 0:00:30]} 11. Rc1 {[%emt 0:00:30]} Bb7 {[%emt 0:00:30]} 12. O-O {[%emt 0:05:30]} O-O {[%emt 0:00:30]} 13. Nd5 {[%emt 0:26:30]} exd5 {[%emt 0:09:30]} 14. cxd5 {[%emt 0:00:00]} Rfc8 {[%emt 0:09:30]} 15. dxc6 {[%emt 0:15:00]} Bxc6 {[%emt 0:00:30]} 16. Nc4 {[%emt 0:03:30]} Rab8 {[%emt 0:00:30]} 17. Bf4 {[%emt 0:15:30]} Rd8 {[%emt 0:12:30]} 18. Ne3 {[%emt 0:06:30]} Qb7 {[%emt 0:01:30]} 19. Bxa6 {[%emt 0:08:43]} Qxa6 {[%emt 0:00:30]} 20. Rxc6 {[%emt 0:00:10]} Qxa2 {[%emt 0:00:30]} 21. Qc2 {[%emt 0:02:39]} Nh5 {[%emt 0:05:30]} 22. Nd5 {[%emt 0:01:58]} Nxf4 {[%emt 0:01:30]} 23. Nxe7+ {[%emt 0:00:02]} Kh8 {[%emt 0:00:30]} 24. Rd1 {[%emt 0:04:14]} Qe6 {[%emt 0:02:30]} 25. Nf5 {[%emt 0:00:37]} Qg6 {[%emt 0:00:30]} 26. f3 {[%emt 0:04:05]} b5 {[%emt 0:05:30]} 27. Rcxd6 {[%emt 0:01:46]} Rxd6 {[%emt 0:00:30]} 28. Rxd6 {[%emt 0:00:52]} Ne6 {[%emt 0:00:30]} 29. b4 {[%emt 0:01:50]} h5 {[%emt 0:02:30]} 30. Qc3 {[%emt 0:00:28]} Ra8 {[%emt 0:00:30]} 31. Qb2 {[%emt 0:00:32]} Rb8 {[%emt 0:02:30]} 32. Qc3 {[%emt 0:00:42]} Ra8 {[%emt 0:00:00]} 33. Qb2 {[%emt 0:00:00]} Rb8 {[%emt 0:00:00]} 34. Qa1 {[%emt 0:00:18]} Rc8 {[%emt 0:00:30]} 35. Ne7 {[%emt 0:00:30]} Qf6 {[%emt 0:00:30]} 36. Qxf6 {[%emt 0:00:30]} Rc1+ {[%emt 0:00:30]} 37. Kf2 {[%emt 0:00:30]} gxf6 {[%emt 0:00:30]} 38. Rd5 {[%emt 0:00:30]} Nc7 {[%emt 0:00:30]} 39. Rxh5+ {[%emt 0:00:30]} Kg7 {[%emt 0:00:30]} 40. Nf5+ {[%emt 0:00:30]} Kg8 {[%emt 0:00:00]} 41. Ne7+ {[%emt 0:05:34]} Kf8 {[%emt 0:00:00]} 42. Nd5 {[%emt 0:00:30]} 1-0

[Event "World Junior U20 Girls 2018"]
[Site "Gebze"]
[Date "2018.09.07"]
[Round "4"]
[White "Caballero Quijano, Mitzy Mishell"]
[Black "Aksoy, Ayca"]
[Result "1/2-1/2"]
[ECO "E14"]
[WhiteElo "2034"]
[BlackElo "1898"]
[Annotator "NA"]
[PlyCount "106"]
[EventDate "2018.09.05"]
[EventType "swiss"]
[EventCountry "TUR"]
[SourceTitle "playchess.com"]
[Source "ChessBase"]
[SourceQuality "1"]
[TimeControl "40/5400+30:1800+30"]

1. d4 {[%emt 0:00:30]} Nf6 {[%emt 0:00:30]} 2. Nf3 {[%emt 0:00:00]} e6 {[%emt 0:00:00]} 3. e3 {[%emt 0:00:00]} b6 {[%emt 0:03:00]} 4. Bd3 {[%emt 0:00:30]} Bb7 {[%emt 0:00:30]} 5. O-O {[%emt 0:00:00]} Be7 {[%emt 0:00:30]} 6. c4 {[%emt 0:00:00]} c5 {[%emt 0:00:30]} 7. Nc3 {[%emt 0:00:00]} O-O {[%emt 0:00:30]} 8. d5 {[%emt 0:00:00]} exd5 {[%emt 0:06:30]} 9. cxd5 {[%emt 0:00:30]} d6 {[%emt 0:00:30]} 10. e4 {[%emt 0:00:30]} Nbd7 {[%emt 0:00:00]} 11. h3 {[%emt 0:08:30]} a6 {[%emt 0:02:00]} 12. a4 {[%emt 0:00:00]} Re8 {[%emt 0:07:30] E14: Queen's Indian: Classical Variation (4 e3)} 13. Bf4 {[%emt 0:00:00]} (13. Re1 Bf8 14. b3 g6 15. Qc2 Bg7 16. Bf4 Ne5 17. Nxe5 dxe5 18. Be3 Qd6 19. Nb1 Nd7 20. Nd2 {0-1 (50) Cori Tello,D (2389)-Socko,M (2471) Riadh 2017}) 13... Nf8 {[%emt 0:02:30]} 14. Re1 {[%emt 0:02:30]} Ng6 {[%emt 0:00:30]} 15. Bh2 {[%emt 0:00:30]} Bf8 {[%emt 0:02:30]} 16. Nd2 {[%emt 0:00:30]} Ne5 $146 {[%emt 0:01:30]} ({Predecessor:} 16... Nd7 17. Bf1 Qf6 18. Nc4 Nge5 19. Bxe5 dxe5 20. Qb3 {1-0 (53) Leiva Rodriguez,J (2283)-Kourkoulos Arditis,S (2109) Athens 2012}) 17. Be2 {[%emt 0:00:30]} g6 {[%emt 0:03:30]} 18. f4 {[%emt 0:00:30]} Ned7 {[%emt 0:00:30]} 19. Bf3 {[%emt 0:00:30]} b5 {[%emt 0:06:30]} 20. axb5 {[%emt 0:03:30]} axb5 $16 {[%emt 0:00:00]} 21. Nxb5 {[%emt 0:03:30]} Qb6 {[%emt 0:00:00]} 22. Na3 {[%emt 0:00:30]} Qxb2 {[%emt 0:02:30]} 23. Ndc4 {[%emt 0:00:30]} Qd4+ {[%emt 0:03:30]} 24. Qxd4 {[%emt 0:00:30]} cxd4 {[%emt 0:00:30]} 25. Nb5 {[%emt 0:01:30]} Rxa1 {[%emt 0:01:30]} 26. Rxa1 {[%emt 0:00:30]} Nxe4 {[%emt 0:02:30]} 27. Bxe4 {[%emt 0:01:30]} Rxe4 {[%emt 0:00:30]} 28. Ncxd6 {[%emt 0:00:30]} Bxd5 {[%emt 0:00:30]} 29. Nxe4 {[%emt 0:00:30]} Bxe4 {[%emt 0:00:30]} 30. Nxd4 {[%emt 0:00:30]} Bc5 {[%emt 0:00:30]} 31. Rd1 {[%emt 0:00:30]} Nb6 {[%emt 0:00:30]} 32. Kh1 {[%emt 0:00:30]} Nd5 {[%emt 0:00:30]} 33. Nf3 {[%emt 0:05:30]} h6 {[%emt 0:20:30]} 34. Bg3 {[%emt 0:03:30]} Be3 {[%emt 0:05:30]} 35. Kh2 {[%emt 0:03:30]} Bxf4 {[%emt 0:08:30]} 36. Bxf4 {[%emt 0:01:30]} Nxf4 {[%emt 0:00:30]} 37. Rd4 {[%emt 0:01:30]} Bxf3 {[%emt 0:01:46]} 38. Rxf4 {[%emt 0:00:30]} Bd5 {[%emt 0:00:11]} 39. Rd4 {[%emt 0:00:30]} Be6 {[%emt 0:01:06]} 40. Kg3 {[%emt 0:00:00]} h5 {[%emt 0:00:00]} 41. h4 {[%emt 0:03:00]} Kg7 {[%emt 0:01:27]} 42. Kf4 {[%emt 0:00:00]} Bg4 {[%emt 0:00:30]} 43. Ke5 {[%emt 0:02:00]} Bf5 {[%emt 0:02:30]} 44. Rd6 {[%emt 0:00:30]} Bg4 {[%emt 0:02:30]} 45. g3 {[%emt 0:00:00]} Bh3 {[%emt 0:01:30]} 46. Rf6 {[%emt 0:00:00]} Bg4 {[%emt 0:00:30]} 47. Rf4 {[%emt 0:00:30]} Be6 {[%emt 0:00:30]} 48. Kd6 {[%emt 0:00:00]} Bc8 {[%emt 0:03:30]} 49. Ke7 {[%emt 0:00:00]} Be6 {[%emt 0:00:30]} 50. Rf6 {[%emt 0:00:30]} Bc4 {[%emt 0:01:30]} 51. Rf3 {[%emt 0:00:30]} Bd5 {[%emt 0:00:30]} 52. Re3 {[%emt 0:01:30]} Bb7 {[%emt 0:01:30]} 53. Re5 {[%emt 0:00:00]} Bf3 {[%emt 0:00:30]} 1/2-1/2

[Event "World Junior U20 Girls 2018"]
[Site "Gebze"]
[Date "2018.09.07"]
[Round "4"]
[White "Yang, Yijing"]
[Black "Koljevic, Nikolina"]
[Result "1-0"]
[ECO "D32"]
[WhiteElo "2018"]
[BlackElo "1898"]
[Annotator "NA"]
[PlyCount "47"]
[EventDate "2018.09.05"]
[EventType "swiss"]
[EventCountry "TUR"]
[SourceTitle "playchess.com"]
[Source "ChessBase"]
[SourceQuality "1"]
[TimeControl "40/5400+30:1800+30"]

1. d4 {[%emt 0:00:30]} d5 {[%emt 0:00:30]} 2. c4 {[%emt 0:00:30]} e6 {[%emt 0:00:00]} 3. Nc3 {[%emt 0:00:00]} c5 {[%emt 0:00:00]} 4. cxd5 {[%emt 0:01:00]} exd5 {[%emt 0:00:30]} 5. Nf3 {[%emt 0:00:30]} Nc6 {[%emt 0:00:00]} 6. dxc5 {[%emt 0:00:00]} d4 {[%emt 0:00:00]} 7. Na4 {[%emt 0:00:00]} Bxc5 {[%emt 0:00:00]} 8. Nxc5 {[%emt 0:00:00]} Qa5+ {[%emt 0:00:00]} 9. Bd2 {[%emt 0:00:00]} Qxc5 {[%emt 0:00:30]} 10. Rc1 {[%emt 0:00:00]} Qb6 {[%emt 0:00:00]} 11. e3 {[%emt 0:00:00]} dxe3 {[%emt 0:01:00]} 12. Bxe3 {[%emt 0:00:30]} Qxb2 {[%emt 0:01:30]} 13. Bc4 {[%emt 0:00:30]} Qb4+ {[%emt 0:01:30]} 14. Nd2 {[%emt 0:04:30]} Nge7 {[%emt 0:03:30]} 15. Bc5 {[%emt 0:02:30]} Qa5 {[%emt 0:01:30]} 16. O-O {[%emt 0:01:30]} O-O {[%emt 0:01:30]} 17. Re1 {[%emt 0:05:30]} Qd8 {[%emt 0:07:30]} 18. Qe2 {[%emt 0:04:30]} Re8 {[%emt 0:04:30]} 19. Ne4 {[%emt 0:00:30]} Nd4 {[%emt 0:14:30]} 20. Bxd4 {[%emt 0:02:30]} Qxd4 {[%emt 0:00:30]} 21. Rcd1 {[%emt 0:00:00]} Qb6 {[%emt 0:13:30]} 22. Nd6 {[%emt 0:01:00]} Be6 {[%emt 0:02:30]} 23. Bxe6 {[%emt 0:00:30]} fxe6 {[%emt 0:00:30]} 24. Qxe6+ {[%emt 0:00:30]} 1-0

[Event "World Junior U20 Girls 2018"]
[Site "Gebze"]
[Date "2018.09.07"]
[Round "4"]
[White "Kamalidenova, Meruert"]
[Black "Hilario, Aleyla"]
[Result "0-1"]
[ECO "A46"]
[WhiteElo "2011"]
[BlackElo "2203"]
[Annotator "NA"]
[PlyCount "92"]
[EventDate "2018.09.05"]
[EventType "swiss"]
[EventCountry "TUR"]
[SourceTitle "playchess.com"]
[Source "ChessBase"]
[SourceQuality "1"]
[TimeControl "40/5400+30:1800+30"]

1. d4 {[%emt 0:00:30]} Nf6 {[%emt 0:00:30]} 2. Nf3 {[%emt 0:00:00]} e6 {[%emt 0:00:30]} 3. g3 {[%emt 0:00:00]} b5 {[%emt 0:00:00]} 4. Bg2 {[%emt 0:00:30]} Bb7 {[%emt 0:00:00]} 5. O-O {[%emt 0:00:30]} Be7 {[%emt 0:00:30]} 6. a4 {[%emt 0:01:30]} b4 {[%emt 0:02:30]} 7. c3 {[%emt 0:02:30]} a5 {[%emt 0:02:30]} 8. c4 {[%emt 0:03:30]} c5 {[%emt 0:01:30]} 9. Bf4 {[%emt 0:02:30]} O-O {[%emt 0:04:30]} 10. Nbd2 {[%emt 0:05:30]} Na6 {[%emt 0:24:30]} 11. Nb3 {[%emt 0:05:30]} Rc8 {[%emt 0:04:30]} 12. Rc1 {[%emt 0:04:30]} d5 {[%emt 0:06:30]} 13. Ne5 {[%emt 0:05:30]} Qb6 {[%emt 0:00:30]} 14. cxd5 {[%emt 0:04:30]} exd5 {[%emt 0:03:30]} 15. dxc5 {[%emt 0:04:30]} Bxc5 {[%emt 0:00:30] [#]} 16. Nxc5 $14 {[%emt 0:03:30]} (16. Qd3 $1 $18) 16... Nxc5 {[%emt 0:00:30]} 17. Be3 {[%emt 0:01:30]} Qd6 {[%emt 0:01:30]} 18. Nd3 {[%emt 0:10:30]} Ne6 {[%emt 0:07:30]} 19. Qb3 {[%emt 0:03:30]} Ba6 {[%emt 0:00:30]} 20. Rfd1 {[%emt 0:02:30]} Rfd8 {[%emt 0:12:30]} 21. Bf4 {[%emt 0:08:30]} Qe7 {[%emt 0:08:59]} 22. e3 {[%emt 0:06:30]} Ne4 {[%emt 0:08:34]} 23. Bh3 {[%emt 0:06:01]} Rc4 {[%emt 0:06:38]} 24. Bxe6 {[%emt 0:04:52]} Qxe6 {[%emt 0:00:31]} 25. f3 {[%emt 0:01:35]} Rxc1 {[%emt 0:01:50]} 26. Nxc1 {[%emt 0:01:43]} Nc5 {[%emt 0:00:24]} 27. Qa2 {[%emt 0:02:53]} h6 {[%emt 0:00:19]} 28. e4 {[%emt 0:02:40]} Bb7 {[%emt 0:00:56]} 29. Ne2 {[%emt 0:02:37]} Rd7 {[%emt 0:00:36]} 30. Nd4 {[%emt 0:01:44]} Qa6 {[%emt 0:00:29]} 31. e5 {[%emt 0:01:29]} Ne6 {[%emt 0:00:31]} 32. b3 {[%emt 0:01:50]} Qb6 {[%emt 0:01:02]} 33. Be3 {[%emt 0:00:08]} Rc7 {[%emt 0:00:00]} 34. Qd2 {[%emt 0:00:43]} Rc3 {[%emt 0:00:07]} 35. Nf5 {[%emt 0:00:35]} Qc7 {[%emt 0:00:57]} 36. Bd4 {[%emt 0:00:20]} Rxf3 {[%emt 0:00:25]} 37. Rc1 {[%emt 0:00:44]} Qd7 {[%emt 0:00:11]} 38. Ne3 {[%emt 0:00:00]} Ng5 {[%emt 0:00:26]} 39. Kh1 {[%emt 0:00:44]} Ne4 {[%emt 0:00:35]} 40. Qe2 {[%emt 0:00:00]} Rf2 {[%emt 0:00:00]} 41. Qg4 {[%emt 0:06:52]} Qxg4 {[%emt 0:02:00]} 42. Nxg4 {[%emt 0:02:30]} Rd2 {[%emt 0:00:00]} 43. Bb6 {[%emt 0:03:30]} d4 {[%emt 0:01:00]} 44. Kg1 {[%emt 0:00:30]} Ng5 {[%emt 0:01:30]} 45. Bxa5 {[%emt 0:00:30]} Nf3+ {[%emt 0:00:30]} 46. Kf1 {[%emt 0:00:30]} Ba6+ {[%emt 0:00:00]} 0-1

[Event "World Junior U20 Girls 2018"]
[Site "Gebze"]
[Date "2018.09.07"]
[Round "4"]
[White "Cramling Bellon, Anna"]
[Black "Aydin, Gulenay"]
[Result "1-0"]
[ECO "E71"]
[WhiteElo "2009"]
[BlackElo "1882"]
[Annotator "NA RC"]
[PlyCount "127"]
[EventDate "2018.09.05"]
[EventType "swiss"]
[EventCountry "TUR"]
[SourceTitle "playchess.com"]
[Source "ChessBase"]
[SourceQuality "1"]
[TimeControl "40/5400+30:1800+30"]

1. d4 {[%emt 0:00:30]} Nf6 {[%emt 0:00:30]} 2. c4 {[%emt 0:00:00]} g6 {[%emt 0:00:30]} 3. Nc3 {[%emt 0:00:00]} Bg7 {[%emt 0:00:00]} 4. e4 {[%emt 0:00:30]} d6 {[%emt 0:00:00]} 5. h3 {[%emt 0:00:00]} O-O {[%emt 0:00:30]} 6. Bg5 {[%emt 0:00:00]} c5 {[%emt 0:06:30]} 7. d5 {[%emt 0:01:30]} Re8 {[%emt 0:15:30]} 8. Bd3 {[%emt 0:02:30]} e6 {[%emt 0:04:30]} 9. Kf1 {[%emt 0:00:30]} exd5 {[%emt 0:04:30]} 10. exd5 {[%emt 0:00:30]} Nbd7 {[%emt 0:03:30]} 11. Nf3 {[%emt 0:00:00]} h6 {[%emt 0:06:30]} 12. Be3 {[%emt 0:03:00] E71: King's Indian: 4 e4 d6 5 h3} Kh7 $146 {[%emt 0:06:30]} ({Predecessor:} 12... a6 13. Qd2 g5 14. a4 Nf8 15. g4 Ng6 16. Ra3 Bd7 17. Qc2 Qc8 18. a5 Rb8 19. Rb3 Qc7 20. Bxg6 fxg6 {0-1 (49) Lajthajm,B (2507)-Nurkic,S (2395) Mionica 2006}) 13. g4 {[%emt 0:08:30]} Ng8 {[%emt 0:02:30]} 14. h4 {[%emt 0:12:30]} Kh8 {[%emt 0:02:30]} 15. Ne4 {[%emt 0:23:30]} (15. g5 $14) 15... Rxe4 {[%emt 0:10:30]} 16. Bxe4 {[%emt 0:00:30]} Ndf6 {[%emt 0:00:30]} 17. Qd3 {[%emt 0:18:30]} Bxg4 {[%emt 0:06:30]} 18. Ng5 {[%emt 0:04:30]} Qe8 {[%emt 0:12:44]} 19. f3 {[%emt 0:06:40]} Nxe4 {[%emt 0:02:51]} 20. Qxe4 {[%emt 0:12:40]} Qxe4 {[%emt 0:04:23]} 21. Nxf7+ {[%emt 0:00:06]} Kh7 {[%emt 0:00:14]} 22. Ng5+ {[%emt 0:02:28]} hxg5 {[%emt 0:01:21]} 23. hxg5+ {[%emt 0:00:07]} Bh5 {[%emt 0:00:43]} 24. fxe4 {[%emt 0:00:07]} Rf8+ {[%emt 0:01:33]} 25. Kg2 {[%emt 0:00:22]} b6 {[%emt 0:01:37]} 26. Raf1 {[%emt 0:01:04]} Re8 {[%emt 0:02:04]} 27. Rh4 {[%emt 0:00:11]} Re7 {[%emt 0:01:09]} 28. b3 {[%emt 0:00:38]} Be5 {[%emt 0:01:20]} 29. Bf4 {[%emt 0:00:50]} Kg7 {[%emt 0:00:49]} 30. Bg3 {[%emt 0:01:44]} a6 {[%emt 0:01:58]} 31. a4 {[%emt 0:00:35]} Re8 {[%emt 0:00:33]} 32. Kh3 {[%emt 0:00:55]} b5 {[%emt 0:00:55]} 33. axb5 {[%emt 0:00:14]} axb5 {[%emt 0:00:11]} 34. cxb5 {[%emt 0:00:03]} Be2 {[%emt 0:00:00]} 35. Rh1 {[%emt 0:00:55]} Bxb5 {[%emt 0:00:41]} 36. Kg2 {[%emt 0:00:09]} Bxg3 {[%emt 0:00:51]} 37. Kxg3 {[%emt 0:00:54]} Re5 {[%emt 0:00:17]} 38. Rh7+ {[%emt 0:00:57]} Kf8 {[%emt 0:00:03]} 39. Kf4 {[%emt 0:00:16]} Bd3 {[%emt 0:00:57]} 40. Re1 {[%emt 0:00:00]} Bb5 {[%emt 0:00:00]} 41. Rb7 {[%emt 0:06:35]} Be8 {[%emt 0:02:46]} 42. Ra1 {[%emt 0:03:30]} Ne7 {[%emt 0:09:57]} 43. Rb8 {[%emt 0:04:10]} Kf7 {[%emt 0:06:46]} 44. Ra7 {[%emt 0:01:17]} Kf8 {[%emt 0:00:46]} 45. Raa8 {[%emt 0:04:03]} Nxd5+ {[%emt 0:06:31]} 46. exd5 {[%emt 0:00:11]} Kf7 {[%emt 0:03:56]} 47. Rd8 {[%emt 0:02:23]} Rf5+ {[%emt 0:00:50]} 48. Kg4 {[%emt 0:00:47]} Re5 {[%emt 0:00:17]} 49. Rxd6 {[%emt 0:00:55]} Ke7 {[%emt 0:01:46]} 50. Re6+ {[%emt 0:10:58]} Rxe6 {[%emt 0:00:34]} 51. dxe6 {[%emt 0:00:02]} Bc6 {[%emt 0:00:26]} 52. Rg8 {[%emt 0:01:27]} Bd5 $18 {[%emt 0:01:32]} 53. Kf4 Bxe6 {[%emt 0:00:00]} 54. Rxg6 {[%emt 0:00:47]} Bxb3 {[%emt 0:00:54]} 55. Ke5 {[%emt 0:00:55]} c4 {[%emt 0:01:10]} 56. Rg7+ {[%emt 0:00:12]} Ke8 {[%emt 0:00:26]} 57. Rb7 {[%emt 0:00:40]} Bc2 {[%emt 0:01:00]} 58. Kf6 {[%emt 0:00:16]} Bd3 {[%emt 0:00:35]} 59. g6 {[%emt 0:00:17]} c3 {[%emt 0:00:00]} 60. g7 {[%emt 0:00:30]} Bh7 {[%emt 0:00:27]} 61. g8=Q+ {[%emt 0:00:19]} Bxg8 {[%emt 0:00:30]} 62. Rb8+ {[%emt 0:00:30]} Kd7 {[%emt 0:00:30]} 63. Rxg8 {[%emt 0:00:00]} Kd6 {[%emt 0:00:00]} 64. Rc8 {[%emt 0:00:00]} 1-0

[Event "World Junior U20 Girls 2018"]
[Site "Gebze"]
[Date "2018.09.07"]
[Round "4"]
[White "Stanciu, Ioana-Georgiana"]
[Black "Bail, Ellen Larissa"]
[Result "1-0"]
[ECO "B80"]
[WhiteElo "2000"]
[BlackElo "1832"]
[Annotator "NA"]
[PlyCount "79"]
[EventDate "2018.09.05"]
[EventType "swiss"]
[EventCountry "TUR"]
[SourceTitle "playchess.com"]
[Source "ChessBase"]
[SourceQuality "1"]
[TimeControl "40/5400+30:1800+30"]

1. e4 {[%emt 0:00:30]} c5 {[%emt 0:00:30]} 2. Nf3 {[%emt 0:00:00]} d6 {[%emt 0:00:30]} 3. d4 {[%emt 0:00:00]} cxd4 {[%emt 0:00:00]} 4. Nxd4 {[%emt 0:00:30]} Nf6 {[%emt 0:00:00]} 5. Nc3 {[%emt 0:00:30]} a6 {[%emt 0:03:30]} 6. Be3 {[%emt 0:00:00]} e6 {[%emt 0:00:30]} 7. f3 {[%emt 0:01:00]} Qc7 {[%emt 0:02:30]} 8. Qd2 {[%emt 0:00:30]} Be7 {[%emt 0:00:30]} 9. g4 {[%emt 0:01:30]} Nfd7 {[%emt 0:05:30]} 10. h4 {[%emt 0:01:30]} Nc6 {[%emt 0:02:30]} 11. O-O-O {[%emt 0:01:30]} b5 {[%emt 0:10:30]} 12. g5 {[%emt 0:00:30]} Nde5 {[%emt 0:02:30]} 13. f4 {[%emt 0:03:30]} Nc4 {[%emt 0:02:30]} 14. Bxc4 {[%emt 0:02:30]} bxc4 {[%emt 0:00:30]} 15. f5 $16 {[%emt 0:02:30]} Nd8 {[%emt 0:08:30]} 16. h5 {[%emt 0:02:30]} Rb8 {[%emt 0:02:30]} 17. h6 {[%emt 0:06:30]} g6 {[%emt 0:00:30]} 18. fxe6 {[%emt 0:04:30]} fxe6 {[%emt 0:03:30]} 19. Rhf1 {[%emt 0:00:30]} Qb7 {[%emt 0:00:00]} 20. b3 {[%emt 0:00:30]} Qb4 {[%emt 0:06:00]} 21. Kb1 {[%emt 0:01:30]} Rb7 {[%emt 0:03:30]} 22. Ka1 {[%emt 0:06:30]} Bd7 {[%emt 0:06:30]} 23. Nde2 {[%emt 0:03:30]} cxb3 {[%emt 0:09:30]} 24. cxb3 {[%emt 0:00:00]} Bc6 {[%emt 0:02:30]} 25. Qc2 {[%emt 0:16:00]} Rc7 {[%emt 0:04:30]} 26. Nd5 {[%emt 0:07:30]} Bxd5 {[%emt 0:08:37]} 27. Qxc7 {[%emt 0:00:30]} Bxe4 {[%emt 0:00:23]} 28. Bd4 {[%emt 0:11:30]} Rg8 {[%emt 0:00:33]} 29. Nc3 {[%emt 0:01:30]} Bf5 {[%emt 0:05:26]} 30. Ne2 {[%emt 0:11:32]} Be4 {[%emt 0:00:30]} 31. Nc3 {[%emt 0:00:30]} Bf5 {[%emt 0:00:30]} 32. Bf6 {[%emt 0:00:30]} Qb7 {[%emt 0:00:16]} 33. Qc4 {[%emt 0:01:43]} Qc6 {[%emt 0:00:59]} 34. Qb4 {[%emt 0:01:33]} Qb7 {[%emt 0:01:08]} 35. Qf4 {[%emt 0:02:04]} Qc6 {[%emt 0:01:30]} 36. Rc1 {[%emt 0:02:30]} Rf8 {[%emt 0:00:30]} 37. Na4 {[%emt 0:01:37]} Bxf6+ {[%emt 0:04:48]} 38. gxf6 {[%emt 0:00:04]} Qd5 {[%emt 0:01:19]} 39. Rfd1 {[%emt 0:02:35]} e5 {[%emt 0:02:04]} 40. Qb4 {[%emt 0:01:27]} 1-0